bitfinex-derivatives/quotes_ETHF0:USTF0_20250209
["timestamp","ask_amount","ask_price","bid_price","bid_amount"]
[1739091739397,0.00562535,2665.0,2664.6,1.6664]
[1739091739590,0.00562535,2665.0,2664.8,3.2078]
[1739091744901,0.00562535,2665.0,2664.8,5.20277725]
[1739091747201,3.93640299,2664.9,2664.8,5.20277725]
[1739091747501,3.93640299,2664.9,2664.8,3.2078]
[1739091747803,5.07810299,2664.9,2664.8,3.2078]
[1739091747995,5.68010299,2664.9,2664.8,3.2078]
[1739091748797,5.68010299,2664.9,2664.6,0.89255187]
[1739091749297,7.29410299,2664.9,2664.6,0.89255187]
[1739091750601,7.29410299,2664.9,2664.3,5.20218805]
[1739091751096,10.50190299,2664.9,2664.2,0.5812]
[1739091751898,10.50190299,2664.9,2664.0,46.56388805]
[1739091756207,0.18938895,2664.8,2664.0,46.56388805]
[1739091756507,4.31923724,2664.7,2664.0,46.56388805]
[1739091758106,4.31923724,2664.7,2664.0,5.20218805]
[1739091758305,3.2078,2664.6,2664.0,3.2078]
[1739091758793,4.87599189,2664.5,2664.0,3.2078]
[1739091759106,1.1421,2664.4,2664.0,3.2078]
[1739091759504,4.09400203,2664.3,2664.0,5.20218805]
[1739091761309,4.09400203,2664.3,2664.1,0.5506]
[1739091762505,1.1421,2664.4,2664.1,1.0673]
[1739091764305,1.1421,2664.4,2664.2,40.8]
[1739091764707,0.591,2664.5,2664.2,40.8]
[1739091765205,4.01388562,2664.4,2664.0,5.20218805]
[1739091765512,0.6029,2664.3,2664.0,5.20218805]
[1739091765710,0.5588,2664.2,2664.1,40.8]
[1739091766112,0.5588,2664.2,2664.0,5.20218805]
[1739091766612,0.5588,2664.2,2664.0,46.00218805]
[1739091767202,4.82842535,2665.0,2664.1,0.5169]
[1739091767415,1.1288,2664.7,2664.3,5.20218805]
[1739091767606,4.18340078,2664.4,2664.3,5.20218805]
[1739091767800,1.1288,2664.7,2664.3,5.20218805]
[1739091768310,4.08131884,2664.6,2664.3,5.20218805]
[1739091768714,4.08131884,2664.6,2664.3,5.76838805]
[1739091771116,0.5476,2664.5,2664.3,2.56058805]
[1739091771704,4.19105023,2664.4,2664.0,3.2078]
[1739091771909,1.157,2664.3,2664.0,3.2078]
[1739091772411,3.96550115,2664.2,2664.0,3.2078]
[1739091772816,0.599,2664.1,2664.0,3.2078]
[1739091773213,4.5343765,2664.1,2663.6,40.8]
[1739091779123,4.5343765,2664.1,2663.5,3.2078]
[1739091779619,4.5343765,2664.1,2663.5,44.0078]
[1739091781426,3.2078,2663.9,2663.5,44.0078]
[1739091781608,1.1775,2663.8,2663.5,44.0078]
[1739091781822,5.45938634,2663.8,2663.5,44.0078]
[1739091782015,0.5506,2663.7,2663.5,44.0078]
[1739091782212,0.5506,2663.7,2663.5,3.2078]
[1739091782412,3.99545004,2663.6,2663.5,3.2078]
[1739091782811,3.99545004,2663.6,2663.5,44.0078]
[1739091783922,3.99545004,2663.6,2663.5,3.2078]
[1739091786214,0.52549,2663.5,2663.2,40.8]
[1739091786420,0.6011,2663.4,2662.6,1.1387]
[1739091786723,3.7664,2663.3,2662.7,3.2078]
[1739091786920,1.1319,2663.3,2662.7,40.8]
[1739091787219,4.35355559,2663.2,2662.7,40.8]
[1739091789121,1.615,2663.1,2662.7,40.8]
[1739091789333,1.615,2663.1,2662.6,0.5507]
[1739091789530,4.05926385,2663.0,2662.6,0.5507]
[1739091791420,1.1428,2662.9,2662.6,0.5507]
[1739091791726,0.5676,2662.8,2662.6,0.5507]
[1739091791922,3.99332041,2662.8,2662.7,40.8]
[1739091792230,3.99332041,2662.8,2662.7,46.00218805]
[1739091792426,0.00562535,2663.6,2662.7,52.51888805]
[1739091792726,4.04260772,2663.5,2663.2,1.99438805]
[1739091793130,4.04260772,2663.5,2663.2,2.55958805]
[1739091794221,4.04260772,2663.5,2663.1,3.2078]
[1739091795127,0.5886,2663.4,2663.1,3.2078]
[1739091795327,1.1541,2663.3,2662.8,3.2078]
[1739091795526,5.15115899,2663.3,2662.8,3.2078]
[1739091797433,5.15115899,2663.3,2662.9,1.99438805]
[1739091797434,6.76615899,2663.3,2662.9,1.99438805]
[1739091797624,6.76615899,2663.3,2662.9,2.51118805]
[1739091797823,6.76615899,2663.3,2662.9,1.99438805]
[1739091798231,6.76615899,2663.3,2663.0,0.5551]
[1739091799927,4.58985899,2663.3,2663.0,0.5551]
[1739091800124,4.58985899,2663.3,2663.1,3.7244]
[1739091800329,3.99705899,2663.3,2663.2,1.99438805]
[1739091800826,3.99692042,2663.5,2663.2,1.99438805]
[1739091801223,1.15322535,2663.6,2663.2,1.99438805]
[1739091801424,1.15322535,2663.6,2663.5,3.2078]
[1739091801729,0.00562535,2663.6,2663.5,5.20218805]
[1739091804937,3.2078,2665.1,2663.5,11.72767805]
[1739091805135,3.2078,2665.1,2664.5,1.99438805]
[1739091805136,4.9298,2665.1,2664.5,1.99438805]
[1739091805433,10.57211906,2665.1,2664.5,1.99438805]
[1739091805930,10.57211906,2665.1,2664.3,3.2078]
[1739091806130,10.57211906,2665.1,2664.5,0.00562535]
[1739091806131,10.57774441,2665.1,2664.5,0.00562535]
[1739091806436,8.95874441,2665.1,2664.5,2.0000134]
[1739091806931,9.00004441,2665.1,2664.5,2.0000134]
[1739091809132,10.61904441,2665.1,2664.5,2.0000134]
[1739091809633,10.61904441,2665.1,2664.5,0.00562535]
[1739091811829,3.2078,2664.8,2664.2,3.2078]
[1739091812034,0.5596,2664.7,2664.2,3.2078]
[1739091812333,4.55552187,2664.7,2663.9,6.52238805]
[1739091812526,4.55552187,2664.7,2663.9,1.99438805]
[1739091815026,0.5576,2664.6,2663.9,1.99438805]
[1739091815229,2.2242,2664.5,2663.9,1.99438805]
[1739091815427,6.19842219,2664.5,2663.9,1.99438805]
[1739091816535,6.19842219,2664.5,2663.8,3.2078]
[1739091817630,9.40622219,2664.5,2663.8,3.2078]
[1739091818227,9.40622219,2664.5,2663.9,40.8]
[1739091821340,9.40622219,2664.5,2663.8,3.2078]
[1739091822437,6.19842219,2664.5,2663.8,3.2078]
[1739091822641,6.19842219,2664.5,2663.9,0.5596]
[1739091823239,6.19842219,2664.5,2663.8,3.2078]
[1739091823737,3.2078,2664.4,2663.7,40.8]
[1739091824132,4.71930127,2664.3,2663.7,40.8]
[1739091825240,4.71930127,2664.3,2663.8,3.2078]
[1739091827032,4.71930127,2664.3,2663.7,40.8]
[1739091827343,4.71930127,2664.3,2663.8,3.2078]
[1739091832047,4.71930127,2664.3,2663.5,3.7674]
[1739091832237,4.71930127,2664.3,2663.5,3.2078]
[1739091832944,6.71368932,2664.3,2663.5,3.2078]
[1739091833951,3.2078,2664.1,2663.6,1.99438805]
[1739091834254,0.599,2664.0,2663.6,1.99438805]
[1739091834453,4.81280296,2664.0,2663.7,0.5536]
[1739091838043,4.81280296,2664.0,2663.8,3.2078]
[1739091843253,4.81280296,2664.0,2663.5,3.2078]
[1739091843553,1.1741,2663.9,2663.5,3.2078]
[1739091844052,4.22507045,2663.8,2663.5,3.2078]
[1739091856168,4.22507045,2663.8,2663.6,1.99438805]
[1739091856568,4.22507045,2663.8,2663.7,0.5596]
[1739091856969,4.22507045,2663.8,2663.7,1.0763]
[1739091863171,0.599,2664.0,2663.7,1.0763]
[1739091863474,0.599,2664.0,2663.9,5.20218805]
[1739091866270,4.7801661,2664.0,2663.9,5.20218805]
[1739091867583,4.7801661,2664.0,2663.9,3.2078]
[1739091871078,0.599,2664.0,2663.9,5.20218805]
[1739091872877,1.1634,2664.3,2663.9,5.20218805]
[1739091873184,1.1634,2664.3,2664.2,5.20218805]
[1739091873372,0.5941,2664.5,2664.2,5.20218805]
[1739091873781,4.23473243,2664.4,2664.2,5.20218805]
[1739091875872,0.5941,2664.5,2664.2,5.20218805]
[1739091876075,0.5941,2664.5,2664.3,0.5597]
[1739091876882,0.5941,2664.5,2664.2,5.38941867]
[1739091878582,3.92771133,2664.4,2664.2,5.38941867]
[1739091880379,0.5941,2664.5,2664.2,5.38941867]
[1739091881276,4.0878562,2664.4,2664.2,5.38941867]
[1739091890984,4.0878562,2664.4,2664.2,3.2078]
[1739091891792,4.0878562,2664.4,2663.8,3.2078]
[1739091891793,3.2078,2664.3,2663.8,3.2078]
[1739091891990,4.8218,2664.3,2663.8,3.2078]
[1739091892187,4.89622867,2664.2,2663.8,3.2078]
[1739091892387,0.5942,2664.1,2663.6,1.99438805]
[1739091892891,3.98616511,2664.0,2663.6,1.99438805]
[1739091894996,3.98616511,2664.0,2663.9,1.99438805]
[1739091895796,1.1554,2664.2,2663.9,1.99438805]
[1739091895991,0.6053,2664.2,2664.0,3.2078]
[1739091896194,1.6697,2664.5,2664.0,3.7698]
[1739091896398,1.6697,2664.5,2664.2,1.99438805]
[1739091896598,4.07560903,2664.4,2664.2,1.99438805]
[1739091909009,4.07560903,2664.4,2664.0,3.2078]
[1739091911107,4.07560903,2664.4,2664.2,1.99438805]
[1739091916606,1.6697,2664.5,2664.3,3.2078]
[1739091919714,1.6697,2664.5,2664.3,3.7673]
[1739091919908,1.6697,2664.5,2664.3,4.3717]
[1739091920404,1.6697,2664.5,2664.4,40.8]
[1739091920711,1.614,2665.0,2664.4,40.8]
[1739091920913,1.7758,2664.9,2664.5,1.99438805]
[1739091921111,5.68839246,2664.9,2664.5,1.99438805]
[1739091921710,5.68839246,2664.9,2664.8,1.99438805]
[1739091921711,1.7758,2664.9,2664.8,1.99438805]
[1739091923011,1.7758,2664.9,2664.6,3.2078]
[1739091924815,3.97189712,2664.8,2664.6,3.2078]
[1739091925215,3.97189712,2664.8,2664.2,5.38737392]
[1739091935528,1.614,2664.7,2664.2,5.20218805]
[1739091935826,4.8218,2664.7,2664.2,3.2078]
[1739091936010,3.96265495,2664.6,2664.2,3.2078]
[1739091936216,1.1274,2664.5,2664.2,3.2078]
[1739091936415,1.7297,2664.5,2664.2,3.2078]
[1739091936716,3.93233643,2664.4,2664.2,3.2078]
[1739091939522,7.14013643,2664.4,2663.8,3.2078]
[1739091941520,3.93233643,2664.4,2663.8,3.2078]
[1739091945121,3.93233643,2664.4,2663.6,3.11948805]
[1739091948933,3.93233643,2664.4,2663.6,1.99438805]
[1739091949132,7.14013643,2664.4,2663.6,1.99438805]
[1739091954334,7.14013643,2664.4,2663.8,3.2078]
[1739091954840,8.75413643,2664.4,2663.9,1.0758]
[1739091955037,7.14013643,2664.4,2663.9,3.07018805]
[1739091955938,3.93233643,2664.4,2663.9,3.07018805]
[1739091956531,3.93233643,2664.4,2664.2,5.20218805]
[1739091956840,3.93233643,2664.4,2664.3,0.5594]
[1739091957030,2.2098,2664.7,2664.3,1.1172]
[1739091957338,4.02190044,2664.6,2664.3,1.1172]
[1739091957848,4.02190044,2664.6,2664.5,3.2078]
[1739091958140,1.1436,2665.0,2664.5,5.20218805]
[1739091958341,0.00562535,2665.1,2664.8,5.20218805]
[1739091958740,0.00562535,2665.1,2664.9,1.1298]
[1739091959340,0.00562535,2665.1,2664.9,1.6462]
[1739091960143,0.00562535,2665.1,2665.0,3.2078]
[1739091966148,4.18523858,2665.1,2665.0,3.2078]
[1739091966450,4.18523858,2665.1,2664.9,2.917]
[1739091966645,1.7817,2665.0,2664.9,2.917]
[1739091967153,5.84074217,2665.0,2664.9,2.917]
[1739091968051,5.84074217,2665.0,2664.3,5.977]
[1739091968052,5.84074217,2665.0,2664.3,3.2078]
[1739091968552,5.84074217,2665.0,2664.2,1.99438805]
[1739091968948,3.2078,2664.7,2664.2,1.99438805]
[1739091969152,1.614,2664.6,2664.0,3.2078]
[1739091969356,1.2018,2664.5,2663.9,1.99438805]
[1739091969657,1.7782,2664.5,2663.9,1.99438805]
[1739091969849,4.27188757,2664.4,2663.8,3.2078]
[1739091970055,7.47968757,2664.4,2663.8,3.2078]
[1739091970249,7.47968757,2664.4,2663.6,1.99438805]
[1739091973155,7.47968757,2664.4,2663.8,3.2078]
[1739091973357,4.27188757,2664.4,2663.9,1.99438805]
[1739091974953,7.47968757,2664.4,2663.6,1.99438805]
[1739091979550,1.614,2664.3,2663.6,1.99438805]
[1739091979859,4.22832192,2664.2,2663.6,1.99438805]
[1739091982465,4.22832192,2664.2,2663.5,3.2078]
[1739091982659,3.2078,2664.1,2663.3,5.09954504]
[1739091982959,1.1383,2664.0,2663.3,2.18254504]
[1739091983160,5.93214958,2664.0,2663.3,2.18254504]
[1739091983555,5.93214958,2664.0,2663.2,44.0078]
[1739091983556,7.92653763,2664.0,2663.2,44.0078]
[1739091983760,3.2078,2663.8,2663.2,44.0078]
[1739091983960,1.614,2663.7,2663.2,44.0078]
[1739091984156,5.92077788,2663.7,2663.2,44.0078]
[1739091988571,5.92077788,2663.7,2663.2,3.2078]
[1739091989363,3.2078,2663.5,2662.9,3.2078]
[1739091989563,1.1409,2663.4,2662.9,3.2078]
[1739091989763,5.81041731,2663.4,2662.9,44.0078]
[1739091992062,5.81041731,2663.4,2663.2,0.00255391]
[1739092002487,5.81041731,2663.4,2662.7,1.99438805]
[1739092002789,3.2078,2663.2,2662.7,1.99438805]
[1739092003390,4.24709653,2663.1,2662.7,1.99438805]
[1739092003785,0.577,2663.0,2662.7,1.99438805]
[1739092003988,0.5994,2662.9,2662.7,1.99438805]
[1739092004182,4.59107381,2662.9,2662.7,1.99438805]
[1739092007991,3.99167381,2662.9,2662.7,1.99438805]
[1739092008192,3.99167381,2662.9,2662.8,0.5598]
[1739092008696,1.1336,2663.3,2662.8,0.5598]
[1739092008990,3.91335678,2663.1,2662.7,1.99438805]
[1739092009187,3.91335678,2663.1,2662.8,1.1393]
[1739092009391,1.1336,2663.3,2662.8,1.1393]
[1739092009593,3.91335678,2663.0,2662.8,1.1393]
[1739092009991,1.1336,2663.3,2662.7,1.99438805]
[1739092010193,0.5827,2662.9,2662.6,3.2078]
[1739092010398,4.68078704,2662.9,2662.6,3.2078]
[1739092010596,0.5827,2662.9,2662.6,3.2078]
[1739092013896,0.5751,2663.3,2662.7,2.55418805]
[1739092014096,0.5723,2663.2,2662.7,3.07108805]
[1739092014396,4.59321388,2663.2,2662.7,3.07108805]
[1739092014596,4.59321388,2663.2,2662.8,0.5985]
[1739092016900,4.59321388,2663.2,2662.7,2.55418805]
[1739092017904,4.59321388,2663.2,2662.6,3.2078]
[1739092018106,7.80101388,2663.2,2662.6,3.2078]
[1739092019593,3.2078,2662.9,2662.3,3.2078]
[1739092019797,3.3389,2662.8,2662.3,3.2078]
[1739092019998,7.68527361,2662.8,2662.3,3.2078]
[1739092020998,7.68527361,2662.8,2662.1,1.99438805]
[1739092021403,9.67966166,2662.8,2662.0,3.2078]
[1739092021603,4.8228,2662.7,2661.9,40.8]
[1739092021804,4.8228,2662.7,2661.8,1.99438805]
[1739092022002,4.20818417,2662.6,2661.8,1.99438805]
[1739092022201,4.20818417,2662.6,2661.8,42.79438805]
[1739092022401,3.2078,2662.4,2661.8,42.79438805]
[1739092022605,1.1558,2662.3,2661.8,40.8]
[1739092022805,1.99438805,2662.2,2661.7,3.2078]
[1739092023011,1.615,2662.1,2661.7,3.2078]
[1739092023313,1.99438805,2661.8,2661.2,3.2078]
[1739092023509,1.1302,2661.7,2661.2,3.2078]
[1739092023696,3.2078,2661.6,2660.7,0.75098267]
[1739092023903,1.621,2661.5,2660.7,0.75098267]
[1739092024110,5.8606448,2661.5,2660.9,3.2078]
[1739092024301,5.8606448,2661.5,2660.8,40.8]
[1739092024499,4.2396448,2661.5,2660.9,5.20218805]
[1739092024716,4.2396448,2661.5,2661.2,5.20218805]
[1739092025109,4.2396448,2661.5,2661.3,0.5599]
[1739092026909,1.623,2661.8,2661.3,0.5599]
[1739092027113,0.5898,2661.7,2661.3,0.5599]
[1739092027301,4.75546309,2661.7,2661.3,0.5599]
[1739092027505,0.597,2661.6,2661.3,0.5599]
[1739092027706,0.5514,2662.0,2661.5,3.2078]
[1739092028013,4.04414149,2661.9,2661.5,5.20218805]
[1739092028202,4.04414149,2661.9,2661.6,0.5548]
[1739092028609,4.04414149,2661.9,2661.7,0.5606]
[1739092029911,4.04414149,2661.9,2661.8,3.2078]
[1739092030511,1.99438805,2662.1,2661.5,3.2078]
[1739092030706,1.1189,2661.8,2661.5,3.2078]
[1739092030911,0.5509,2661.7,2661.2,3.2078]
[1739092031108,3.2078,2661.4,2660.6,3.2078]
[1739092031309,0.5644,2661.3,2660.6,3.2078]
[1739092031514,2.1975,2661.2,2660.6,3.2078]
[1739092031718,2.7484,2661.2,2660.6,5.20218805]
[1739092032017,3.92673538,2661.1,2660.6,3.2078]
[1739092033319,3.92673538,2661.1,2660.6,3.7627]
[1739092034617,0.55653603,2661.2,2660.6,5.75708805]
[1739092034917,0.00563603,2661.2,2661.0,3.2078]
[1739092035521,4.35315744,2661.1,2660.7,3.2078]
[1739092038619,1.646,2661.0,2660.7,3.2078]
[1739092039218,4.32672447,2660.9,2660.7,3.2078]
[1739092040120,1.1671,2660.8,2660.7,3.2078]
[1739092040520,5.31860604,2660.8,2660.7,3.2078]
[1739092040917,5.31860604,2660.8,2660.4,3.2078]
[1739092045319,1.99438805,2660.6,2660.4,3.2078]
[1739092045825,3.98629384,2660.5,2660.1,3.2078]
[1739092046119,2.2043,2660.4,2660.1,3.2078]
[1739092046327,0.5473,2660.3,2660.1,3.2078]
[1739092046526,5.48440466,2660.3,2660.1,3.2078]
[1739092047631,10.68659271,2660.3,2659.7,3.2078]
[1739092047925,3.2078,2660.0,2659.4,3.2078]
[1739092048133,3.2078,2659.7,2659.1,1.99438805]
[1739092048331,1.1062,2659.6,2659.1,1.99438805]
[1739092048542,5.04027678,2659.6,2659.1,1.99438805]
[1739092049032,5.04027678,2659.6,2658.9,3.2078]
[1739092049629,5.04027678,2659.6,2658.2,1.99438805]
[1739092049630,5.20218805,2659.1,2658.2,1.99438805]
[1739092049832,3.2078,2658.8,2658.2,1.99438805]
[1739092050239,3.2078,2658.8,2657.7,3.2078]
[1739092050240,3.2078,2658.5,2657.7,3.2078]
[1739092050532,1.99438805,2658.8,2657.9,1.99438805]
[1739092050533,1.657,2658.4,2657.9,1.99438805]
[1739092050736,5.65045443,2658.4,2658.2,1.99438805]
[1739092051029,1.66263603,2658.4,2658.2,1.99438805]
[1739092051336,4.03951139,2658.3,2658.2,1.99438805]
[1739092051538,4.03951139,2658.3,2657.9,1.99438805]
[1739092051946,4.03951139,2658.3,2657.6,1.99438805]
[1739092051947,4.63481139,2658.3,2657.6,1.99438805]
[1739092052230,4.63481139,2658.3,2657.7,44.0078]
[1739092052542,4.63481139,2658.3,2657.9,1.99438805]
[1739092052738,6.30581139,2658.3,2657.9,1.99438805]
[1739092053139,6.30581139,2658.3,2657.7,40.8]
[1739092053332,3.2078,2658.1,2657.7,40.8]
[1739092053938,4.11231326,2658.0,2657.7,40.8]
[1739092054943,3.2078,2657.8,2657.4,8.78581937]
[1739092055241,1.99438805,2657.9,2656.9,3.2078]
[1739092055242,3.2078,2657.5,2656.9,3.2078]
[1739092055436,0.6055,2657.4,2656.9,3.2078]
[1739092055631,5.01374462,2657.4,2656.9,3.2078]
[1739092055830,5.01374462,2657.4,2657.0,1.99438805]
[1739092056033,3.81884462,2657.4,2657.3,1.99438805]
[1739092056238,3.81884462,2657.4,2657.1,3.2078]
[1739092056434,3.81884462,2657.4,2657.0,42.79438805]
[1739092056641,3.2078,2657.5,2657.0,42.79438805]
[1739092057034,4.30538774,2657.4,2657.0,42.79438805]
[1739092057236,4.30538774,2657.4,2657.0,46.00218805]
[1739092057439,4.30538774,2657.4,2657.0,42.79438805]
[1739092057646,4.30538774,2657.4,2657.1,0.5862]
[1739092057838,4.30538774,2657.5,2657.1,0.5862]
[1739092058134,4.1069729,2657.3,2657.1,0.5862]
[1739092058337,4.1069729,2657.3,2657.0,42.79438805]
[1739092058545,7.3147729,2657.5,2657.0,42.79438805]
[1739092058736,4.1069729,2657.4,2657.0,42.79438805]
[1739092058941,3.2078,2657.5,2657.0,42.79438805]
[1739092059442,3.2078,2657.5,2657.0,40.8]
[1739092059443,3.2078,2657.3,2657.0,40.8]
[1739092059638,4.64173635,2657.4,2657.0,40.8]
[1739092059949,4.08803635,2657.2,2657.0,40.8]
[1739092060133,3.93715503,2657.3,2657.0,40.8]
[1739092060334,0.5537,2657.4,2657.0,40.8]
[1739092060536,0.52652,2658.3,2657.0,40.8]
[1739092060537,1.713,2657.8,2657.1,0.5683]
[1739092060941,3.93715503,2657.4,2657.1,0.5683]
[1739092061137,0.54924059,2657.7,2657.1,0.5683]
[1739092061338,1.713,2657.8,2657.1,0.5683]
[1739092061539,3.94972654,2657.3,2657.1,0.5683]
[1739092061743,3.2078,2657.6,2657.1,0.5683]
[1739092062135,4.02535702,2657.2,2657.1,0.5683]
[1739092062339,0.29153181,2657.5,2657.1,0.5683]
[1739092062548,3.2078,2657.6,2657.1,0.5683]
[1739092062841,4.02535702,2657.5,2657.1,0.5683]
[1739092063343,3.2078,2657.9,2657.1,0.5683]
[1739092063544,4.01943141,2657.7,2657.1,0.5683]
[1739092064237,4.01943141,2657.7,2657.3,1.99438805]
[1739092064537,4.9178,2657.9,2657.3,1.99438805]
[1739092064734,4.10354141,2657.8,2657.3,1.99438805]
[1739092064935,4.9178,2657.9,2657.3,1.99438805]
[1739092065145,4.12550714,2657.8,2657.3,1.99438805]
[1739092065845,6.2018,2658.5,2657.6,1.99438805]
[1739092066037,1.71463603,2658.4,2657.6,5.20218805]
[1739092066347,4.21825052,2658.0,2657.9,1.99438805]
[1739092066648,1.71463603,2658.4,2657.9,1.99438805]
[1739092066943,0.00563603,2658.4,2658.2,1.99438805]
[1739092068833,1.709,2659.0,2658.3,40.8]
[1739092069041,4.9168,2659.0,2658.3,44.0078]
[1739092069346,1.01539679,2658.8,2658.3,44.0078]
[1739092070148,1.02103282,2658.8,2658.3,3.21343603]
[1739092073948,1.02103282,2658.8,2658.6,3.2078]
[1739092076152,0.00563603,2658.8,2658.6,3.2078]
[1739092076348,0.00563603,2658.8,2658.7,0.6007]
[1739092077150,4.34005629,2658.8,2658.6,3.2078]
[1739092079258,0.6033,2658.7,2658.6,3.2078]
[1739092079758,4.9003929,2658.7,2658.6,3.2078]
[1739092080349,4.2970929,2658.7,2658.6,3.2078]
[1739092080555,0.00563603,2658.8,2658.6,3.2078]
[1739092081554,4.17611539,2658.7,2658.6,3.2078]
[1739092082864,0.00563603,2658.8,2658.6,3.2078]
[1739092087061,11.60350288,2658.7,2658.3,0.00563603]
[1739092087260,1.99438805,2658.4,2658.3,0.00563603]
[1739092087766,6.15426288,2658.4,2658.3,0.00563603]
[1739092087965,6.15426288,2658.4,2657.6,3.77391821]
[1739092088369,9.36206288,2658.4,2657.6,3.21281821]
[1739092088867,9.36206288,2658.4,2657.6,5.20720626]
[1739092089062,6.15426288,2658.4,2657.7,0.5937]
[1739092089273,4.15987483,2658.4,2657.9,3.2078]
[1739092089564,1.7139,2658.6,2657.9,3.2078]
[1739092089766,4.25777501,2658.5,2657.9,3.2078]
[1739092090166,1.7139,2658.6,2658.2,3.2078]
[1739092090363,4.36711279,2658.5,2658.2,3.2078]
[1739092091764,4.36711279,2658.5,2658.2,5.20218805]
[1739092092266,4.36711279,2658.5,2658.3,0.582]
[1739092093367,4.36711279,2658.5,2658.2,5.20218805]
[1739092093671,4.36711279,2658.5,2658.3,40.8]
[1739092093859,1.72363603,2658.8,2658.3,40.8]
[1739092094060,0.00563603,2658.8,2658.3,40.8]
[1739092094268,4.3324781,2658.7,2658.5,3.2078]
[1739092095357,0.6013,2658.6,2658.5,3.2078]
[1739092096270,4.77202953,2658.6,2658.5,3.2078]
[1739092097365,4.17072953,2658.6,2658.5,5.20218805]
[1739092097665,0.00563603,2658.8,2658.5,5.20218805]
[1739092098170,0.00563603,2658.8,2658.5,11.20218805]
[1739092098372,0.5963,2659.6,2658.7,2.52081805]
[1739092098668,0.5963,2659.6,2659.4,3.2078]
[1739092101874,4.3324472,2659.5,2659.4,3.2078]
[1739092104273,4.3324472,2659.5,2659.2,0.00563603]
[1739092104576,1.99438805,2659.3,2659.2,0.00563603]
[1739092104767,5.20218805,2659.3,2658.4,3.2078]
[1739092104974,0.5905,2659.2,2658.4,3.2078]
[1739092105266,0.5905,2659.2,2658.8,3.2078]
[1739092105464,4.06512518,2659.1,2658.8,3.2078]
[1739092105669,0.5929,2659.0,2658.6,1.99438805]
[1739092106061,4.06512518,2658.9,2658.6,1.99438805]
[1739092106465,4.06512518,2658.9,2658.5,3.2078]
[1739092107978,0.5868,2658.8,2658.5,3.2078]
[1739092109475,4.19859223,2658.7,2658.5,3.2078]
[1739092110580,0.5564,2658.6,2658.5,3.2078]
[1739092110973,4.60341221,2658.6,2658.5,3.2078]
[1739092112480,4.04701221,2658.6,2658.5,3.2078]
[1739092112883,4.33138885,2658.7,2658.5,3.2078]
[1739092113083,0.5868,2658.8,2658.5,3.2078]
[1739092113477,3.99489524,2658.7,2658.5,3.2078]
[1739092115384,3.99489524,2658.7,2658.6,1.99438805]
[1739092115683,0.5929,2659.0,2658.6,1.99438805]
[1739092115684,0.5929,2659.0,2658.6,3.17578805]
[1739092115880,0.5929,2659.0,2658.9,3.2078]
[1739092116180,1.1372,2659.5,2658.9,3.2078]
[1739092116376,0.5555,2659.4,2658.9,3.2078]
[1739092116577,3.98101549,2659.3,2658.9,3.2078]
[1739092116777,4.53651549,2659.4,2659.0,40.8]
[1739092116977,0.5555,2659.4,2659.0,40.8]
[1739092117282,4.33136568,2659.3,2658.9,3.2078]
[1739092119984,4.33136568,2659.3,2659.2,3.2078]
[1739092120781,1.1372,2659.5,2659.2,3.2078]
[1739092120987,0.5496,2659.4,2659.2,3.2078]
[1739092121190,4.03179762,2659.3,2659.2,3.2078]
[1739092121378,4.58139762,2659.4,2659.2,3.2078]
[1739092121588,0.5496,2659.4,2659.2,3.2078]
[1739092121888,4.03179762,2659.3,2659.2,3.2078]
[1739092122892,4.03179762,2659.3,2658.9,1.99438805]
[1739092123090,4.03179762,2659.3,2659.2,3.2078]
[1739092123484,0.5496,2659.4,2659.2,3.2078]
[1739092123689,0.00563603,2659.8,2659.2,3.2078]
[1739092123890,1.73263603,2659.8,2659.3,1.179]
[1739092124084,3.96717998,2659.7,2659.5,3.2078]
[1739092124986,3.96717998,2659.7,2659.0,3.2078]
[1739092126192,1.99438805,2659.6,2659.0,3.2078]
[1739092126584,4.09446588,2659.5,2659.0,3.2078]
[1739092126994,4.09446588,2659.6,2659.0,3.2078]
[1739092127194,3.87849404,2659.4,2659.0,3.7863]
[1739092127595,4.06198759,2659.5,2659.0,3.7863]
[1739092127801,4.06198759,2659.6,2659.0,3.7863]
[1739092128090,4.06198759,2659.7,2659.3,3.2078]
[1739092128292,1.73263603,2659.8,2659.3,3.2078]
[1739092128597,3.93270439,2659.7,2659.3,3.2078]
[1739092129694,3.93270439,2659.7,2659.4,0.5903]
[1739092131292,3.93270439,2659.7,2659.6,3.2078]
[1739092132091,0.00563603,2659.8,2659.6,3.2078]
[1739092132998,0.00563603,2659.8,2659.6,3.7267]
[1739092133499,0.00563603,2659.8,2659.7,40.8]
[1739092135600,0.00563603,2659.8,2659.6,3.2078]
[1739092137199,0.00563603,2659.8,2659.6,3.7267]
[1739092137994,0.5766,2660.3,2659.6,10.48295]
[1739092138308,0.5766,2660.3,2660.2,3.2078]
[1739092138604,1.1242,2660.4,2660.2,3.2078]
[1739092140601,0.00563603,2660.6,2660.2,3.2078]
[1739092141005,0.00563603,2660.6,2660.1,1.2058]
[1739092141006,4.28808073,2660.5,2660.3,1.99438805]
[1739092141199,4.28808073,2660.5,2660.4,3.2078]
[1739092141400,0.00563603,2660.6,2660.4,3.2078]
[1739092142307,0.00563603,2660.6,2660.5,40.8]
[1739092143411,0.00563603,2660.6,2660.4,3.2078]
[1739092154211,4.36123968,2660.5,2660.3,0.00255391]
[1739092154406,1.7292,2660.4,2660.3,0.00255391]
[1739092154812,5.72636847,2660.4,2660.3,0.00255391]
[1739092155007,5.72636847,2660.4,2660.1,3.2078]
[1739092161218,5.72636847,2660.4,2660.2,40.8]
[1739092164618,5.72636847,2660.4,2660.1,3.2078]
[1739092165718,5.72636847,2660.4,2660.2,40.8]
[1739092166415,5.72636847,2660.4,2660.1,3.7843]
[1739092166924,5.72636847,2660.4,2660.1,44.5843]
[1739092167420,5.72636847,2660.4,2660.1,3.7843]
[1739092168021,5.15606847,2660.4,2660.2,40.8]
[1739092168217,1.1589,2660.4,2660.2,40.8]
[1739092169526,0.5864,2660.3,2660.2,40.8]
[1739092170014,0.5864,2660.3,2660.1,3.7843]
[1739092171526,0.00563603,2660.6,2660.1,3.7843]
[1739092172020,4.28589745,2660.5,2660.4,3.2078]
[1739092172925,0.00563603,2660.6,2660.4,3.2078]